bitfinex/quotes_BTCUSD_20250129
["timestamp","ask_amount","ask_price","bid_price","bid_amount"]
[1738166671899,0.01002351,102070.0,102060.0,0.146972]
[1738166673424,0.01002351,102070.0,102060.0,0.150972]
[1738166673801,0.02823634,102070.0,102060.0,0.150972]
[1738166674075,0.02823634,102070.0,102060.0,0.151972]
[1738166674321,0.17641798,102070.0,102060.0,0.005]
[1738166674573,0.17519334,102070.0,102060.0,0.151972]
[1738166674794,0.17519334,102070.0,102060.0,0.005]
[1738166675082,0.18612029,102070.0,102060.0,0.005]
[1738166675350,0.18612029,102070.0,102060.0,0.004]
[1738166675559,0.18612029,102070.0,102060.0,0.150972]
[1738166676697,0.18612029,102070.0,102060.0,0.004]
[1738166677105,0.146972,102060.0,102050.0,0.296986]
[1738166677330,0.43107029,102070.0,102050.0,0.146986]
[1738166677534,0.57803929,102070.0,102050.0,0.442959]
[1738166677767,0.57803929,102070.0,102050.0,0.538927]
[1738166677768,0.77399629,102070.0,102050.0,0.538927]
[1738166677932,0.57803929,102070.0,102050.0,0.8349]
[1738166678303,0.38208529,102070.0,102060.0,0.146972]
[1738166678507,0.18613229,102070.0,102060.0,0.146972]
[1738166678928,0.18607689,102070.0,102060.0,0.146972]
[1738166680283,0.15699251,102070.0,102060.0,0.146972]
[1738166681055,0.01002351,102070.0,102060.0,0.146972]
[1738166681284,0.15698051,102070.0,102060.0,0.146972]
[1738166681514,0.15698051,102070.0,102060.0,0.147972]
[1738166681894,0.18606489,102070.0,102060.0,0.146972]
[1738166682239,0.18606489,102070.0,102060.0,0.147972]
[1738166683222,0.18606489,102070.0,102060.0,0.001]
[1738166683432,0.1872896,102070.0,102060.0,0.001]
[1738166684403,0.15820522,102070.0,102060.0,0.001]
[1738166684630,0.146972,102060.0,102050.0,0.342967]
[1738166685055,0.53891,102060.0,102040.0,0.59862283]
[1738166685304,0.53891,102060.0,102040.0,0.89461583]
[1738166685520,0.53891,102060.0,102040.0,0.59862283]
[1738166685733,0.37218572,102060.0,102050.0,0.146986]
[1738166686158,0.37218572,102060.0,102050.0,0.147986]
[1738166686634,0.37218572,102060.0,102050.0,0.146986]
[1738166687072,0.56815872,102060.0,102040.0,0.70960328]
[1738166687304,0.37218572,102060.0,102050.0,0.146986]
[1738166688812,0.42118672,102060.0,102040.0,0.40263983]
[1738166689028,0.56816972,102060.0,102040.0,0.40264383]
[1738166689228,0.56816972,102060.0,102040.0,0.25564983]
[1738166689437,0.76414872,102060.0,102040.0,0.59863383]
[1738166689574,0.56816972,102060.0,102040.0,0.53927383]
[1738166690121,0.0890069,102050.0,102040.0,0.19628983]
[1738166690531,0.2359929,102050.0,102040.0,0.19628983]
[1738166690729,0.0890069,102050.0,102040.0,0.19628983]
[1738166691104,0.0890069,102050.0,102040.0,0.35336928]
[1738166691480,0.0890069,102050.0,102040.0,0.35436928]
[1738166691822,0.02924772,102050.0,102040.0,0.35436928]
[1738166692036,0.02924772,102050.0,102040.0,0.74317244]
[1738166692254,0.02924772,102050.0,102040.0,0.74417244]
[1738166692475,0.02924772,102050.0,102040.0,0.7747141]
[1738166692676,0.02924772,102050.0,102040.0,0.7707141]
[1738166692951,0.02924772,102050.0,102040.0,0.9207141]
[1738166693166,0.02924772,102050.0,102040.0,0.9247141]
[1738166693296,0.0001423,102060.0,102050.0,0.322886]
[1738166693507,0.0001423,102060.0,102050.0,0.68110861]
[1738166694184,0.0001423,102060.0,102050.0,0.71165112]
[1738166695182,0.0001423,102060.0,102050.0,0.68110861]
[1738166695430,0.0001423,102060.0,102050.0,0.71165584]
[1738166696058,0.0001423,102060.0,102050.0,0.71265584]
[1738166698017,0.0001423,102060.0,102050.0,0.68210861]
[1738166699057,0.0001423,102060.0,102050.0,0.68310861]
[1738166699496,0.0001423,102060.0,102050.0,0.71265826]
[1738166699701,0.0001423,102060.0,102050.0,0.76105826]
[1738166699903,0.0001423,102060.0,102050.0,0.76505826]
[1738166700322,0.0001423,102060.0,102050.0,0.55407881]
[1738166700562,0.14833907,102060.0,102050.0,0.18253565]
[1738166700775,0.1471143,102060.0,102050.0,0.005]
[1738166701204,0.24435746,102060.0,102050.0,0.005]
[1738166701437,0.32505746,102060.0,102050.0,0.005]
[1738166701905,0.60903691,102060.0,102050.0,0.005]
[1738166702113,0.60903691,102060.0,102050.0,0.004]
[1738166702794,0.146986,102050.0,102040.0,0.00029883]
[1738166703000,0.24545424,102050.0,102040.0,0.00029883]
[1738166703212,0.24422916,102050.0,102040.0,0.00029883]
[1738166705729,0.2636438,102050.0,102040.0,0.00029883]
[1738166706532,0.1166578,102050.0,102020.0,0.73452457]
[1738166706745,0.54024608,102040.0,102020.0,0.53849357]
[1738166706963,0.539021,102040.0,102020.0,0.73452257]
[1738166707147,0.147015,102030.0,102020.0,0.196027]
[1738166707349,0.34426908,102030.0,102010.0,0.77478783]
[1738166707551,0.147029,102020.0,102010.0,0.35610283]
[1738166707753,0.539087,102030.0,102010.0,0.49237783]
[1738166707962,0.343056,102030.0,102020.0,0.147029]
[1738166708120,0.147027,102030.0,102020.0,0.151029]
[1738166708565,0.147027,102030.0,102020.0,0.147029]
[1738166708763,0.86150482,102040.0,102020.0,0.5391]
[1738166708996,0.02919244,102030.0,102020.0,0.343061]
[1738166709307,0.17620744,102030.0,102020.0,0.148029]
[1738166709903,0.147029,102020.0,102010.0,0.35234383]
[1738166710341,0.47395458,102030.0,102010.0,0.34534383]
[1738166710553,0.62098058,102030.0,102010.0,0.49237783]
[1738166710763,0.24549741,102020.0,102010.0,0.00029883]
[1738166710979,0.30612261,102020.0,101980.0,0.325]
[1738166711195,0.11097945,102000.0,101970.0,0.28386292]
[1738166711406,0.25806645,101980.0,101970.0,0.08773992]
[1738166711610,0.35530961,101980.0,101970.0,0.08773992]
[1738166712280,0.24433016,101980.0,101970.0,0.08773992]
[1738166712920,0.24433016,101980.0,101970.0,0.08822328]
[1738166712921,0.35530961,101980.0,101970.0,0.08822328]
[1738166713149,0.37830961,101980.0,101970.0,0.08822328]
[1738166713376,0.41966531,101980.0,101970.0,0.00078219]
[1738166713586,0.58966531,101980.0,101970.0,0.00078219]
[1738166713997,0.58966531,101980.0,101970.0,0.00778219]
[1738166714433,0.61886397,101980.0,101970.0,0.00778219]
[1738166714655,0.42352882,101980.0,101970.0,0.00078219]
[1738166715278,0.44352882,101980.0,101970.0,0.00078219]
[1738166715488,0.55450827,101980.0,101970.0,0.00178219]
[1738166715940,0.55450827,101980.0,101970.0,0.00078219]
[1738166716152,0.53450827,101980.0,101970.0,0.00078219]
[1738166716360,0.24433016,101980.0,101970.0,0.00078219]
[1738166716795,0.37830961,101980.0,101970.0,0.00078219]
[1738166717460,0.39100752,101980.0,101960.0,0.00029883]
[1738166717675,0.14713,101950.0,101940.0,0.00029883]
[1738166717886,0.37957898,101950.0,101940.0,0.00044378]
[1738166718109,0.37835261,101950.0,101940.0,0.00044378]
[1738166721142,0.38035261,101950.0,101940.0,0.00044378]
[1738166722208,0.5421039,101940.0,101930.0,0.00029862]
[1738166722465,0.63934706,101940.0,101930.0,0.00034696]
[1738166722680,0.73704706,101940.0,101930.0,0.00034696]
[1738166723112,0.62606761,101940.0,101930.0,0.00034696]
[1738166723344,0.65526627,101940.0,101930.0,0.00034696]
[1738166724442,0.63833571,101940.0,101930.0,0.00034696]
[1738166724626,0.63933571,101940.0,101930.0,0.00034696]
[1738166725796,0.62706761,101940.0,101930.0,0.00034696]
[1738166726584,0.24538816,101940.0,101930.0,0.00034696]
[1738166727259,0.38415209,101940.0,101930.0,0.00034696]
[1738166727706,0.55915209,101940.0,101930.0,0.00034696]
[1738166728157,0.55715209,101940.0,101930.0,0.00034696]
[1738166728373,0.170159,101930.0,101920.0,0.00025842]
[1738166728580,0.52960825,101930.0,101920.0,0.00025842]
[1738166728792,0.52838161,101930.0,101920.0,0.00025842]
[1738166729191,0.53838161,101930.0,101920.0,0.00025842]
[1738166730091,0.53938161,101930.0,101920.0,0.00025842]
[1738166730303,0.52938161,101930.0,101920.0,0.00025842]
[1738166730508,0.53938161,101930.0,101920.0,0.00025842]
[1738166731505,0.86188161,101930.0,101920.0,0.00025842]
[1738166732096,0.86088161,101930.0,101920.0,0.00025842]
[1738166732672,0.87670666,101930.0,101920.0,0.00025842]
[1738166732888,0.98406342,101930.0,101920.0,1e-08]
[1738166733004,0.96406342,101930.0,101920.0,1e-08]
[1738166733215,0.86870666,101930.0,101920.0,1e-08]
[1738166733455,0.87870666,101930.0,101920.0,1e-08]
[1738166733654,0.86670666,101930.0,101920.0,1e-08]
[1738166734070,0.76146402,101930.0,101920.0,1.8e-07]
[1738166734267,0.307203,101900.0,101890.0,0.00013862]
[1738166734439,0.147246,101870.0,101860.0,0.04709862]
[1738166734659,0.3796958,101870.0,101860.0,0.00029862]
[1738166734855,0.37846861,101870.0,101860.0,0.00029862]
[1738166735620,0.378563,101870.0,101860.0,0.00029862]
[1738166736234,0.378563,101870.0,101860.0,0.00129862]
[1738166737091,0.378563,101870.0,101860.0,0.00329862]
[1738166737501,0.36519751,101870.0,101860.0,0.00129862]
[1738166737794,0.25421806,101870.0,101860.0,0.00029862]
[1738166737967,0.25821806,101870.0,101860.0,0.00029862]
[1738166738362,0.25921806,101870.0,101860.0,0.00029862]
[1738166738565,0.37019751,101870.0,101860.0,0.00029862]
[1738166738971,0.25821806,101870.0,101860.0,0.00029862]
[1738166739177,0.1609749,101870.0,101860.0,0.14755862]
[1738166739975,0.1569749,101870.0,101860.0,0.14755862]
[1738166740207,0.1858916,101870.0,101860.0,0.14755862]
[1738166740723,0.1868916,101870.0,101860.0,0.14755862]
[1738166741481,0.36742469,101870.0,101860.0,0.00029862]
[1738166741682,0.36619751,101870.0,101860.0,0.00029862]
[1738166741884,0.38919751,101870.0,101860.0,0.00029862]
[1738166743682,0.53919751,101870.0,101860.0,0.00029862]
[1738166746540,0.40521806,101870.0,101860.0,0.00029862]
[1738166747366,0.44449506,101870.0,101860.0,0.00029862]
[1738166749345,0.29449506,101870.0,101860.0,0.00029862]
[1738166749590,0.25521806,101870.0,101860.0,0.00029862]
[1738166749856,0.36619751,101870.0,101860.0,0.00029862]
[1738166751798,0.25521806,101870.0,101860.0,0.00029862]
[1738166752793,0.25551731,101870.0,101860.0,0.00029862]
[1738166754162,0.50095031,101870.0,101850.0,0.19870107]
[1738166754370,0.14726,101860.0,101850.0,0.34596707]
[1738166754582,0.14726,101860.0,101850.0,0.19870107]
[1738166755671,0.14726,101860.0,101850.0,0.19970107]
[1738166755869,0.14726,101860.0,101850.0,0.20170107]
[1738166756228,0.64720731,101870.0,101850.0,0.74068207]
[1738166756458,0.64720731,101870.0,101850.0,0.54431607]
[1738166756660,0.14726,101860.0,101850.0,0.20168907]
[1738166757069,0.14726,101860.0,101850.0,0.15161007]
[1738166757449,0.35670984,101860.0,101850.0,0.00433507]
[1738166757647,0.24450316,101860.0,101850.0,0.00433507]
[1738166758058,0.24450316,101860.0,101850.0,0.00233507]
[1738166758497,0.24450316,101860.0,101850.0,0.00433507]
[1738166758672,0.24450316,101860.0,101850.0,0.00533507]
[1738166759009,0.24450316,101860.0,101850.0,0.00333507]
[1738166759352,0.35648261,101860.0,101850.0,0.00233507]
[1738166759764,0.24550316,101860.0,101850.0,0.00233507]
[1738166761163,0.35648261,101860.0,101850.0,0.00233507]
[1738166762022,0.24550316,101860.0,101850.0,0.00233507]
[1738166762439,0.37948261,101860.0,101850.0,0.00233507]
[1738166762650,0.4335263,101860.0,101850.0,0.00233507]
[1738166762857,0.4435263,101860.0,101850.0,0.00233507]
[1738166763268,0.4335263,101860.0,101850.0,0.00233507]
[1738166763673,0.32254685,101860.0,101850.0,0.00233507]
[1738166763846,0.26850316,101860.0,101850.0,0.00233507]
[1738166764686,0.26880262,101860.0,101850.0,0.00233507]
[1738166765706,0.26780262,101860.0,101850.0,0.00233507]
[1738166766136,0.27180262,101860.0,101850.0,0.00233507]
[1738166766752,0.2682732,101860.0,101850.0,0.00233507]
[1738166767170,0.2692732,101860.0,101850.0,0.00233507]
[1738166767380,0.24980262,101860.0,101850.0,0.00233507]
[1738166768236,0.24880262,101860.0,101850.0,0.00233507]
[1738166768642,0.24880262,101860.0,101850.0,0.14961007]
[1738166768846,0.00429946,101860.0,101850.0,0.14961007]
[1738166769052,0.15155946,101860.0,101850.0,0.14961007]
[1738166769228,0.15155946,101860.0,101850.0,0.18022701]
[1738166769473,0.15155946,101860.0,101850.0,0.14961007]
[1738166770096,0.14755946,101860.0,101850.0,0.14961007]
[1738166770421,0.00029946,101860.0,101850.0,0.23111007]
[1738166770628,0.00029946,101860.0,101850.0,0.98905912]
[1738166770830,0.00129946,101860.0,101850.0,0.87807967]
[1738166771033,0.00129946,101860.0,101850.0,0.66710022]
[1738166771414,0.00129946,101860.0,101850.0,0.56710022]
[1738166771962,0.00029946,101860.0,101850.0,0.67807967]
[1738166772986,0.00029946,101860.0,101850.0,0.77807967]
[1738166773189,0.00029946,101860.0,101850.0,0.77907967]
[1738166773345,0.00029946,101860.0,101850.0,0.89005912]
[1738166773547,0.00029946,101860.0,101850.0,0.89105912]
[1738166773773,0.00029946,101860.0,101850.0,0.88905912]
[1738166773979,0.00029946,101860.0,101850.0,0.89105912]
[1738166774195,0.00129946,101860.0,101850.0,0.89905912]
[1738166774666,0.00129946,101860.0,101850.0,1.62958612]
[1738166774875,0.00129946,101860.0,101850.0,1.64330612]
[1738166775307,0.00129946,101860.0,101850.0,1.65558612]
[1738166775562,0.00039364,101870.0,101860.0,0.37486]
[1738166775720,0.00039364,101870.0,101860.0,1.9470426]
[1738166775921,0.00039364,101870.0,101860.0,1.7604846]
[1738166776172,0.00039364,101870.0,101860.0,1.1022096]
[1738166776304,0.00039364,101870.0,101860.0,1.2620786]
[1738166777144,0.00039364,101870.0,101860.0,1.2640786]
[1738166777518,0.00139364,101870.0,101860.0,1.2730786]
[1738166777871,0.00139364,101870.0,101860.0,1.2710786]
[1738166778087,6.4e-07,101870.0,101860.0,1.56605805]
[1738166778322,0.43118149,101930.0,101900.0,0.1307]
[1738166778535,0.72464765,101930.0,101910.0,0.53967]
[1738166778681,0.72464765,101930.0,101910.0,0.539661]
[1738166778901,0.93069722,101930.0,101910.0,0.539661]
[1738166779205,0.147174,101920.0,101910.0,0.196241]
[1738166779935,0.54087452,101920.0,101900.0,0.67054881]
[1738166780137,0.34463352,101920.0,101910.0,0.147188]
[1738166780338,0.539647,101920.0,101900.0,0.67055081]
[1738166780873,0.539647,101920.0,101900.0,0.86781281]
[1738166781052,0.539647,101920.0,101910.0,0.147188]
[1738166781053,0.343407,101920.0,101910.0,0.147188]
[1738166781457,0.27373168,101930.0,101920.0,0.147174]
[1738166781687,0.01012482,101930.0,101920.0,0.147174]
[1738166782142,0.01002764,101930.0,101920.0,0.43635345]
[1738166782971,0.01002764,101930.0,101920.0,0.325374]
[1738166784055,0.15718664,101930.0,101920.0,0.225374]
[1738166784270,0.01002764,101930.0,101920.0,0.225374]
[1738166784640,0.01002764,101930.0,101920.0,0.48375345]
[1738166786850,0.15718664,101930.0,101920.0,0.272774]
[1738166787058,0.15841296,101930.0,101920.0,0.147174]
[1738166787259,0.35340664,101930.0,101910.0,0.776284]
[1738166787474,0.54962964,101930.0,101920.0,0.147174]
[1738166787685,0.35340664,101930.0,101920.0,0.147174]
[1738166787898,0.20624764,101930.0,101910.0,0.480046]
[1738166788159,0.147174,101920.0,101910.0,0.195088]
[1738166788337,0.54964364,101930.0,101910.0,0.39133]
[1738166788549,0.147174,101920.0,101910.0,0.34343]
[1738166789179,0.8431158,101930.0,101910.0,0.539681]
[1738166789391,0.147174,101920.0,101910.0,0.34343]
[1738166789795,0.147174,101920.0,101910.0,0.34443]
[1738166790298,0.147174,101920.0,101910.0,0.34343]
[1738166791330,0.8431148,101930.0,101910.0,0.539673]
[1738166791533,0.6468868,101930.0,101910.0,0.34343]
[1738166791739,0.4506638,101930.0,101910.0,0.539673]
[1738166791942,0.6468858,101930.0,101910.0,0.539673]
[1738166792153,0.147174,101920.0,101910.0,0.148188]
[1738166792667,0.6468858,101930.0,101910.0,0.147188]
[1738166792844,0.8431138,101930.0,101910.0,0.344429]
[1738166793048,0.8431138,101930.0,101910.0,0.540679]
[1738166793249,0.8431138,101930.0,101910.0,0.539679]
[1738166793446,0.6468858,101930.0,101910.0,0.540679]
[1738166793630,0.8431128,101930.0,101910.0,0.540679]
[1738166793830,0.8431128,101930.0,101910.0,0.539679]
[1738166794077,0.6468858,101930.0,101910.0,0.540679]
[1738166794929,0.8431088,101930.0,101910.0,0.540679]
[1738166795134,0.35342064,101930.0,101920.0,0.147174]
[1738166795731,0.54964264,101930.0,101910.0,0.540668]
[1738166795969,0.54964264,101930.0,101910.0,0.73691]
[1738166796178,0.54964264,101930.0,101910.0,0.344427]
[1738166796326,0.35342064,101930.0,101920.0,0.147174]
[1738166796745,0.35342064,101930.0,101910.0,0.539669]
[1738166796940,0.54964364,101930.0,101910.0,0.539669]
[1738166797341,0.74586964,101930.0,101910.0,0.539669]
[1738166797509,0.54964364,101930.0,101910.0,0.540669]
[1738166797968,0.54964364,101930.0,101910.0,0.736911]
[1738166798212,0.54964364,101930.0,101910.0,0.540669]
[1738166798400,0.74586864,101930.0,101910.0,0.540668]
[1738166798608,0.54964364,101930.0,101910.0,0.540668]
[1738166799347,0.147174,101920.0,101910.0,0.344427]
[1738166799555,0.147174,101920.0,101910.0,0.148188]
[1738166799903,0.54964364,101930.0,101910.0,0.148188]
[1738166799904,0.54964364,101930.0,101910.0,0.540672]
[1738166800366,0.54964364,101930.0,101910.0,0.539672]
[1738166800568,0.343414,101920.0,101910.0,0.147188]
[1738166800802,0.343414,101920.0,101910.0,0.148188]
[1738166801000,0.343414,101920.0,101910.0,0.1473305]
[1738166801463,0.343414,101920.0,101910.0,0.1483305]
[1738166802203,0.343414,101920.0,101910.0,0.0011425]
[1738166803369,0.343414,101920.0,101910.0,0.0001425]
[1738166803696,0.343414,101920.0,101910.0,0.0011425]
[1738166803985,0.343414,101920.0,101910.0,0.0001425]
[1738166804607,0.343414,101920.0,101910.0,0.1473305]
[1738166805412,0.147174,101920.0,101910.0,0.1473305]
[1738166805646,0.6468998,101930.0,101910.0,0.1473305]
[1738166805826,0.6468998,101930.0,101910.0,0.3435705]
[1738166806067,0.8431248,101930.0,101910.0,0.5398125]
[1738166806239,0.6468968,101930.0,101910.0,0.5398125]
[1738166806458,0.147174,101920.0,101910.0,0.1473305]
[1738166806697,0.16544307,101920.0,101910.0,0.1473305]
[1738166807860,0.8431238,101930.0,101910.0,0.3435725]
[1738166808060,0.8431238,101930.0,101910.0,0.5398155]
[1738166808494,0.8431238,101930.0,101910.0,0.3435725]
[1738166808696,0.8431238,101930.0,101910.0,0.5398165]
[1738166808854,0.6468958,101930.0,101910.0,0.5398165]
[1738166809057,0.8431198,101930.0,101910.0,0.5398165]
[1738166809609,0.147174,101920.0,101910.0,0.1473305]
[1738166816854,0.147174,101920.0,101910.0,0.0001425]
[1738166817060,0.2278005,101920.0,101910.0,0.0001425]
[1738166817266,0.32381716,101920.0,101910.0,0.0001425]
[1738166817475,0.67639661,101920.0,101910.0,0.0001425]
[1738166817686,0.226888,101910.0,101900.0,0.00014481]
[1738166817896,0.43511061,101910.0,101900.0,0.00014481]
[1738166818110,0.32413116,101910.0,101900.0,0.00014481]
[1738166818558,0.60811061,101910.0,101900.0,0.00014481]
[1738166818981,0.60811061,101910.0,101900.0,0.00114481]
[1738166819429,0.60811061,101910.0,101900.0,0.00097426]
[1738166820279,0.58511061,101910.0,101900.0,0.00097426]
[1738166821111,0.63811061,101910.0,101900.0,0.00097426]
[1738166821323,0.96061061,101910.0,101900.0,0.00097426]
[1738166822144,0.147244,101880.0,101860.0,0.5412506]
[1738166822300,0.343564,101880.0,101860.0,0.83808147]
[1738166822505,0.539883,101880.0,101860.0,0.73448147]
[1738166822861,0.539883,101880.0,101860.0,0.72376147]
[1738166823212,0.736204,101880.0,101860.0,0.72375347]
[1738166823446,0.01821398,101870.0,101860.0,0.52741447]
[1738166823656,0.01821398,101870.0,101860.0,0.33108147]
[1738166824943,0.01821398,101870.0,101860.0,0.33808147]
[1738166825509,0.01821398,101870.0,101860.0,0.34480147]
[1738166825707,0.01821398,101870.0,101860.0,0.33808147]
[1738166825943,0.01821398,101870.0,101860.0,0.34880147]
[1738166826131,0.147246,101870.0,101860.0,0.08782647]
[1738166826351,0.14847315,101870.0,101860.0,0.00462647]
[1738166826554,0.147246,101870.0,101860.0,0.15288647]
[1738166826924,0.14847314,101870.0,101860.0,0.00562647]
[1738166827519,0.14847314,101870.0,101860.0,0.00162647]
[1738166827722,0.2457163,101870.0,101860.0,0.00162647]
[1738166827964,0.24448916,101870.0,101860.0,0.00162647]
[1738166828165,0.25408243,101870.0,101860.0,0.00162647]
[1738166828944,0.33548243,101870.0,101860.0,0.00162647]
[1738166829149,0.25408243,101870.0,101860.0,0.00162647]
[1738166838745,0.36506188,101870.0,101860.0,0.00162647]
[1738166839372,0.25408243,101870.0,101860.0,0.00162647]
[1738166843383,0.15683927,101870.0,101860.0,0.00162647]
[1738166843616,0.15806651,101870.0,101860.0,0.00162647]
[1738166844252,0.36628912,101870.0,101860.0,0.00162647]
[1738166844484,0.36628912,101870.0,101860.0,0.00034687]
[1738166844485,0.78237245,101870.0,101860.0,0.00034687]
[1738166844693,0.29726,101860.0,101850.0,0.00233507]
[1738166844931,0.50548261,101860.0,101850.0,0.00248015]
[1738166845743,0.39450316,101860.0,101850.0,0.00248015]
[1738166846372,0.50548261,101860.0,101850.0,0.00248015]
[1738166847832,0.50648261,101860.0,101850.0,0.00248015]
[1738166848443,0.147289,101840.0,101830.0,0.0816423]
[1738166848651,0.147289,101840.0,101830.0,0.00028717]
[1738166848652,0.24575972,101840.0,101830.0,0.00028717]
[1738166848862,0.24453216,101840.0,101830.0,0.00028717]
[1738166852275,0.26450276,101840.0,101830.0,0.00028717]
[1738166852489,0.147289,101840.0,101830.0,0.00028717]
[1738166852684,0.14851657,101840.0,101830.0,0.00028717]
[1738166853801,0.35673918,101840.0,101830.0,0.00028717]
[1738166854007,0.35551161,101840.0,101830.0,0.00028717]
[1738166854229,0.24453216,101840.0,101830.0,0.00028717]
[1738166855642,0.24653216,101840.0,101830.0,0.00028717]
[1738166856117,0.58531161,101840.0,101830.0,0.00028717]
[1738166856326,0.59503115,101840.0,101830.0,0.00028717]
[1738166856526,0.4062517,101840.0,101830.0,0.00028717]
[1738166857292,0.51723115,101840.0,101830.0,0.00028717]
[1738166861458,0.4062517,101840.0,101830.0,0.00028717]
[1738166863525,0.51723115,101840.0,101830.0,0.00028717]
[1738166863727,0.147304,101830.0,101820.0,0.0051424]
[1738166863971,0.2457749,101830.0,101820.0,0.00523679]
[1738166864170,0.24454716,101830.0,101820.0,0.00523679]
[1738166866091,0.35552661,101830.0,101820.0,0.00523679]
[1738166866791,0.24454716,101830.0,101820.0,0.00523679]
[1738166868256,0.24554716,101830.0,101820.0,0.00523679]
[1738166869113,0.26565682,101830.0,101820.0,0.00523679]
[1738166869317,0.148304,101830.0,101820.0,0.00523679]
[1738166870119,0.149304,101830.0,101820.0,0.00523679]
[1738166871323,0.14960283,101830.0,101820.0,0.00523679]
[1738166874037,0.00229883,101830.0,101820.0,0.49153424]
[1738166874229,0.00229883,101830.0,101820.0,0.6887774]
[1738166874700,0.00229883,101830.0,101820.0,0.8387774]
[1738166874900,0.00229883,101830.0,101820.0,0.98031204]
[1738166875309,0.00229883,101830.0,101820.0,0.86933259]
[1738166875522,0.00129883,101830.0,101820.0,0.48323679]
[1738166875747,0.14960283,101830.0,101820.0,0.13323679]
[1738166875951,0.15083048,101830.0,101820.0,0.05063679]
[1738166876161,0.35905309,101830.0,101820.0,0.05063679]
[1738166876367,0.35682544,101830.0,101820.0,0.05063679]
[1738166876563,0.35682544,101830.0,101820.0,0.00523679]
[1738166877710,0.35582544,101830.0,101820.0,0.00623679]
[1738166878304,0.35582544,101830.0,101820.0,0.00523679]
[1738166878720,0.48872612,101830.0,101810.0,0.0001424]
[1738166879009,0.69634794,101820.0,101810.0,0.0001424]
[1738166879209,0.69512006,101820.0,101810.0,0.0001424]
[1738166879411,0.74251221,101820.0,101810.0,0.0001424]
[1738166879814,0.63153276,101820.0,101810.0,1e-08]
[1738166880440,0.147333,101810.0,101800.0,0.00010251]
[1738166880644,0.50678362,101810.0,101800.0,0.00010251]
[1738166880887,0.50555561,101810.0,101800.0,0.00010251]
[1738166881987,0.50655561,101810.0,101800.0,0.00010251]
[1738166882769,0.50755561,101810.0,101800.0,0.00010251]
[1738166884019,0.51746924,101810.0,101800.0,0.00010251]
[1738166885179,0.55046924,101810.0,101800.0,0.00010251]
[1738166885977,0.51746924,101810.0,101800.0,0.00010251]
[1738166886562,0.40648979,101810.0,101800.0,0.00010251]
[1738166886764,0.42656052,101810.0,101800.0,0.00010251]
[1738166886960,0.66023997,101810.0,101800.0,0.00010251]
[1738166887159,0.69323997,101810.0,101800.0,0.00010251]
[1738166888023,0.66023997,101810.0,101800.0,0.00010251]
[1738166888224,0.61383997,101810.0,101800.0,0.00010251]
[1738166888381,0.62383997,101810.0,101800.0,0.00010251]
[1738166888576,0.61383997,101810.0,101800.0,0.00010251]
[1738166889082,0.53753997,101810.0,101800.0,0.00010251]
[1738166891975,0.42656052,101810.0,101800.0,0.00010251]
[1738166892182,0.01191363,101810.0,101800.0,0.27674951]
[1738166892647,0.01191363,101810.0,101800.0,0.37674951]
[1738166893475,0.00991363,101810.0,101800.0,0.37674951]
[1738166893896,0.47291309,101820.0,101800.0,0.57321051]
[1738166894110,0.37373125,101820.0,101800.0,0.76967351]
[1738166894323,0.62444509,101830.0,101820.0,0.0773]
[1738166894537,0.72168825,101830.0,101820.0,0.0773]
[1738166894744,0.92784384,101830.0,101810.0,0.226533]
[1738166894923,0.92784384,101830.0,101810.0,0.422976]
[1738166895126,0.02948723,101830.0,101820.0,0.147318]
[1738166895334,0.01018445,101830.0,101820.0,0.194818]
[1738166895715,0.01018445,101830.0,101820.0,0.277318]
[1738166895921,0.26969549,101830.0,101820.0,0.13]
[1738166896175,0.56214106,101830.0,101810.0,0.147332]
[1738166896343,0.75855506,101830.0,101810.0,0.147332]
[1738166896559,0.75855506,101830.0,101800.0,0.66484151]
[1738166896723,0.14732,101820.0,101800.0,0.66484151]
[1738166896932,0.14732,101820.0,101800.0,0.86130351]
[1738166897132,0.75855506,101830.0,101800.0,0.86080351]
[1738166897443,0.95497206,101830.0,101810.0,0.147333]
[1738166897869,0.16550876,101820.0,101800.0,0.76434151]
[1738166898433,0.16550876,101820.0,101800.0,0.96079451]
[1738166898635,0.01818776,101820.0,101810.0,0.147333]
[1738166899144,0.01818776,101820.0,101810.0,0.327033]
[1738166899349,0.01818776,101820.0,101810.0,0.58441245]
[1738166899528,0.01818776,101820.0,101810.0,0.473433]
[1738166900361,0.02837221,101830.0,101820.0,0.428818]
[1738166900679,0.01863162,101830.0,101820.0,0.68394061]
[1738166900882,0.01863162,101830.0,101820.0,0.83394061]
[1738166901507,0.00044386,101830.0,101820.0,0.83394061]
[1738166902150,0.00044386,101830.0,101820.0,0.72296116]
[1738166902358,0.00044386,101830.0,101820.0,0.1284]
[1738166902359,0.25872731,101830.0,101820.0,0.1284]
[1738166902564,0.25872731,101830.0,101820.0,0.0469]
[1738166902777,0.25872731,101830.0,101820.0,0.194218]
[1738166902778,0.00044386,101830.0,101820.0,0.194218]
[1738166904033,0.14897546,101830.0,101820.0,0.194218]
[1738166904288,0.14774786,101830.0,101820.0,0.195218]
[1738166904499,0.14897546,101830.0,101820.0,0.0509]
[1738166904921,0.14774786,101830.0,101820.0,0.0509]
[1738166905357,0.14774786,101830.0,101820.0,0.004]
[1738166905358,0.25995496,101830.0,101820.0,0.004]
[1738166905562,0.25872731,101830.0,101820.0,0.004]
[1738166905767,0.35597047,101830.0,101820.0,0.004]
[1738166906414,0.14774786,101830.0,101820.0,0.004]
[1738166906855,0.35719812,101830.0,101820.0,0.003]
[1738166907075,0.63781402,101830.0,101810.0,0.540216]
[1738166907277,0.83423202,101830.0,101810.0,0.343772]
[1738166907417,0.83423202,101830.0,101810.0,0.540215]
[1738166907418,0.63881402,101830.0,101810.0,0.540215]
[1738166907643,0.63982602,101830.0,101810.0,0.540215]
[1738166907837,0.147318,101820.0,101810.0,0.343772]
[1738166908043,0.147318,101820.0,101810.0,0.147329]
[1738166908242,0.63982602,101830.0,101810.0,0.343762]
[1738166908442,0.00244386,101830.0,101820.0,0.147318]
[1738166908667,0.00144386,101830.0,101820.0,0.230618]
[1738166908868,0.14874786,101830.0,101820.0,0.230618]
[1738166909244,0.14774786,101830.0,101820.0,0.230618]
[1738166910105,0.00044386,101830.0,101820.0,0.230618]
[1738166910518,0.14874786,101830.0,101820.0,0.230618]
[1738166910904,0.16815985,101830.0,101820.0,0.230618]
[1738166911075,0.47532571,101830.0,101820.0,0.147318]
[1738166911285,0.36434626,101830.0,101820.0,0.147318]
[1738166911525,0.02062826,101830.0,101820.0,0.147318]
[1738166911736,0.16793226,101830.0,101820.0,0.147318]
[1738166912340,0.34615386,101830.0,101810.0,0.540191]
[1738166912535,0.34615386,101830.0,101820.0,0.147318]
[1738166913306,0.14974786,101830.0,101820.0,0.147318]